fUSD/lending_fUSD_20250112
["ID","MTS","AMOUNT","RATE_DAILY","PERIOD"]
[348636740,1736693442138,-500.0,9.999e-05,2]
[348636742,1736693442148,-500.0,9.999e-05,2]
[348636744,1736693442157,-926.79,9.999e-05,2]
[348636746,1736693442167,-500.0,9.999e-05,2]
[348636748,1736693442176,-1050.74,9.999e-05,2]
[348636750,1736693442185,-1047.26,9.999e-05,2]
[348636751,1736693442194,-1313.03,9.999e-05,2]
[348636753,1736693442203,-1033.16,9.999e-05,2]
[348636755,1736693442212,-2439.26,9.999e-05,2]
[348636757,1736693442221,-155.726923,9.999e-05,2]
[348636759,1736693442230,-1058.76,9.999e-05,2]
[348636761,1736693442239,-159.495154,9.999e-05,2]
[348636762,1736693442249,-2672.52,9.999e-05,2]
[348636763,1736693442258,-500.0,9.999e-05,2]
[348636764,1736693442266,-2430.28,9.999e-05,2]
[348636765,1736693442275,-3149.033196,9.999e-05,2]
[348636766,1736693442284,-17657.52444938,0.0001,2]
[348636767,1736693442293,-695239.88183618,0.0001,2]
[348636768,1736693442302,-1913049.34812063,0.0001,2]
[348636769,1736693442314,-18890.24085992,0.0001,2]
[348636770,1736693442325,-382.66647408,0.0001,2]
[348636771,1736693442336,-52442.27382293,0.0001,2]
[348636810,1736693442735,-14185.30066,0.0001,2]
[348636813,1736693442752,-11850.91204221,0.0001,2]
[348636819,1736693442798,-155.43825166,9.967e-05,2]
[348636822,1736693442812,-396.03742428,0.0001,2]
[348636824,1736693442828,-955.85329041,0.0001,2]
[348636827,1736693442844,-774.78703396,0.0001,2]
[348636830,1736693442859,-484.85462293,0.0001,2]
[348636838,1736693442926,-415.1,0.0001,2]
[348636897,1736693443416,-300.0,9.966e-05,2]
[348636900,1736693443431,-200.0,9.966e-05,2]
[348636902,1736693443444,-500.0,9.966e-05,2]
[348636905,1736693443457,-500.0,9.966e-05,2]
[348636907,1736693443470,-504.2774331,9.966e-05,2]
[348636909,1736693443482,-500.0,9.966e-05,2]
[348636911,1736693443494,-500.0,9.966e-05,2]
[348636914,1736693443506,-500.0,9.967e-05,2]
[348636916,1736693443519,-174743.00782424,0.0001,2]
[348636922,1736693443567,-779147.28117316,0.0001,2]
[348636925,1736693443581,-11876.39998308,0.0001,2]
[348636927,1736693443595,-6437.12027647,0.0001,2]
[348636930,1736693443609,-7438.29995211,0.0001,2]
[348636937,1736693443671,-1023.786069,0.0001,2]
[348637169,1736693446291,-537.03,9.966e-05,2]
[348637170,1736693446301,-540.27,9.966e-05,2]
[348637171,1736693446310,-500.0,9.966e-05,2]
[348637172,1736693446319,-621.18,9.967e-05,2]
[348637173,1736693446329,-500.0,9.972e-05,2]
[348637174,1736693446341,-7346.9819323,0.0001,2]
[348637175,1736693446360,-16021.28016304,0.0001,2]
[348637176,1736693446372,-4026.67490018,0.0001,2]
[348637177,1736693446389,-47325.14839248,0.0001,2]
[348637178,1736693446401,-432.09496654,0.0001,2]
[348637179,1736693446454,-264.3754688,0.0001,2]
[348637180,1736693446465,-674.48931819,0.0001,2]
[348637181,1736693446476,-313.06330969,0.0001,2]
[348637182,1736693446487,-1805895.39995511,0.0001,2]
[348637183,1736693446498,-4950.0,0.0001,2]
[348637184,1736693446509,-1200.0,0.0001,2]
[348637185,1736693446586,-988.49,0.0001,2]
[348637186,1736693446598,-223574.09614913,0.0001,2]
[348637187,1736693446609,-3505.300549,0.0001,2]
[348637188,1736693446623,-1648.3540861,0.0001,2]
[348637189,1736693446635,-1957.704,0.0001,2]
[348637190,1736693446654,-5132.2190332,0.0001,2]
[348637192,1736693446665,-2112.7,0.0001,2]
[348637193,1736693446677,-1364.749998,0.0001,2]
[348637195,1736693446688,-6401.99999999,0.0001,2]
[348637198,1736693813049,4200.0,9.99e-05,12]
[348637200,1736693869025,500.0,9.966e-05,7]
[348637201,1736694187552,895.24,8.219e-05,2]
[348637202,1736694191125,500.0,0.00022153,120]
[348637203,1736694193978,2000.0,0.00022153,120]
[348637204,1736694197558,623.210213,0.00022153,120]
[348637205,1736694232767,200.0,0.00022153,120]
[348637206,1736694348446,1665.28850234,0.00023,120]
[348637208,1736694405092,1000.0,8.968e-05,2]
[348637211,1736694458291,429.59,8.906e-05,2]
[348637213,1736694561049,23900.0,8.905e-05,2]
[348637216,1736694631618,-317.65,8.976e-05,2]
[348637217,1736694631627,-587.94839347,8.981e-05,2]
[348637218,1736694631638,-912.05160653,8.981e-05,2]
[348637219,1736694631648,-250.0,8.981e-05,2]
[348637220,1736694631657,-250.0,8.982e-05,2]
[348637221,1736694631666,-150.0,9e-05,2]
[348637222,1736694631676,-176.73,9.227e-05,2]
[348637223,1736694631685,-178.47006299,9.227e-05,2]
[348637224,1736694631695,-175.74833048,9.3e-05,3]
[348637225,1736694631770,-124.25166952,9.3e-05,3]
[348637226,1736694631780,-426.87013394,9.4e-05,3]
[348637227,1736694631791,-273.12986606,9.4e-05,3]
[348637228,1736694631801,-1100.0,9.5e-05,3]
[348637229,1736694631810,-1500.0,9.6e-05,3]
[348637230,1736694631820,-24912.65077131,9.67e-05,2]
[348637231,1736694631831,-1170.77170487,9.67e-05,2]
[348637232,1736694631869,-430.68063875,9.67e-05,2]
[348637233,1736694631881,-27331.6138543,9.67e-05,2]
[348637735,1736694637436,-200.0,8.975e-05,2]
[348637736,1736694637446,-4791.13055673,9.67e-05,2]
[348637737,1736694637458,-18870.00000002,9.67e-05,2]
[348637738,1736694637473,-2418.90747007,9.67e-05,2]
[348637739,1736694637485,-1496.98676046,9.67e-05,2]
[348637740,1736694637584,-384.47,9.67e-05,2]
[348637741,1736694637596,-59914.78824349,9.67e-05,2]
[348637742,1736694637605,-1800.0,9.7e-05,3]
[348637743,1736694637614,-1000.0,9.8e-05,2]
[348637744,1736694637623,-300.0,9.8e-05,3]
[348637745,1736694637634,-7012.4299,9.866e-05,2]
[348637746,1736694637643,-850.0672,9.867e-05,2]
[348637747,1736694637652,-928.1963,9.9e-05,2]
[348637748,1736694637662,-1321.7928,9.9e-05,2]
[348637749,1736694637672,-300.0,9.9e-05,3]
[348637750,1736694637681,-155.43825166,9.9e-05,2]
[348637751,1736694637690,-31126.3931421,9.9e-05,2]
[348637752,1736694637699,-1444.16100802,9.907e-05,2]
[348637753,1736694637709,-500.0,9.964e-05,2]
[348637754,1736694637718,-1939.96,9.964e-05,2]
[348637755,1736694637727,-2837.86,9.964e-05,2]
[348637756,1736694637737,-1804.14,9.964e-05,2]
[348637757,1736694637746,-500.0,9.964e-05,2]
[348637759,1736694637755,-1058.5,9.964e-05,2]
[348637760,1736694637764,-1357.88,9.964e-05,2]
[348637762,1736694637773,-1008.77,9.964e-05,2]
[348637764,1736694637783,-500.0,9.964e-05,2]
[348637765,1736694637792,-806.94,9.964e-05,2]
[348637766,1736694637801,-1154.75,9.964e-05,2]
[348637767,1736694637811,-500.0,9.964e-05,2]
[348637768,1736694637820,-1466.18,9.964e-05,2]
[348637769,1736694637829,-755.9,9.964e-05,2]
[348637770,1736694637838,-835.65,9.964e-05,2]
[348637771,1736694637848,-500.0,9.964e-05,2]
[348637772,1736694637857,-500.0,9.965e-05,2]
[348637773,1736694637866,-882.24,9.965e-05,2]
[348637774,1736694637875,-500.0,9.965e-05,2]
[348637775,1736694637885,-759.55,9.965e-05,2]
[348637777,1736694637894,-202.40737307,9.965e-05,2]
[348637778,1736694637903,-500.0,9.965e-05,2]
[348637779,1736694637912,-500.0,9.965e-05,2]
[348637781,1736694637922,-159.14152261,9.965e-05,2]
[348637783,1736694637931,-500.0,9.965e-05,2]
[348637784,1736694637940,-500.0,9.965e-05,2]
[348637785,1736694637949,-500.0,9.965e-05,2]
[348637787,1736694637958,-514.65,9.965e-05,2]
[348637789,1736694637967,-375.40161466,9.965e-05,2]
[348637790,1736694637977,-500.0,9.965e-05,2]
[348637792,1736694637987,-500.0,9.965e-05,2]
[348637793,1736694637996,-500.0,9.965e-05,2]
[348637794,1736694638006,-500.0,9.965e-05,2]
[348637795,1736694638015,-500.0,9.965e-05,2]
[348637796,1736694638025,-500.0,9.965e-05,2]
[348637797,1736694638034,-773.77,9.965e-05,2]
[348637798,1736694638043,-592.62331865,9.965e-05,2]
[348637799,1736694638053,-500.0,9.965e-05,2]
[348637800,1736694638063,-601.24,9.965e-05,2]
[348637801,1736694638072,-500.0,9.965e-05,2]
[348637802,1736694638082,-560.37,9.965e-05,2]
[348637803,1736694638091,-646.12,9.965e-05,2]
[348637804,1736694638101,-500.0,9.965e-05,2]
[348637805,1736694638110,-500.0,9.965e-05,2]
[348637806,1736694638119,-500.0,9.965e-05,2]
[348637807,1736694638129,-500.0,9.965e-05,2]
[348637808,1736694638138,-364.33760799,9.965e-05,2]
[348637809,1736694638148,-500.0,9.965e-05,2]
[348637810,1736694638158,-500.0,9.965e-05,2]
[348637811,1736694638167,-500.0,9.965e-05,2]
[348637812,1736694638176,-648.23049537,9.965e-05,2]
[348637813,1736694638186,-500.0,9.965e-05,2]
[348637814,1736694638195,-500.0,9.965e-05,2]
[348637815,1736694638205,-500.0,9.965e-05,2]
[348637816,1736694638215,-500.0,9.965e-05,2]
[348637817,1736694638225,-500.0,9.965e-05,2]
[348637818,1736694638234,-500.0,9.965e-05,2]
[348637819,1736694638244,-503.63,9.965e-05,2]
[348637820,1736694638253,-500.0,9.965e-05,2]
[348637821,1736694638263,-242.14448323,9.965e-05,2]
[348637822,1736694638272,-500.0,9.965e-05,2]
[348637823,1736694638281,-500.0,9.965e-05,2]
[348637824,1736694638291,-646.13,9.965e-05,2]
[348637825,1736694638300,-500.0,9.965e-05,2]
[348637826,1736694638309,-658.19,9.965e-05,2]
[348637827,1736694638318,-500.0,9.965e-05,2]
[348637828,1736694638327,-571.96,9.965e-05,2]
[348637829,1736694638336,-500.0,9.965e-05,2]
[348637830,1736694638346,-500.0,9.965e-05,2]
[348637831,1736694638355,-500.0,9.965e-05,2]
[348637832,1736694638364,-500.0,9.965e-05,2]
[348637833,1736694638373,-500.0,9.965e-05,2]
[348637834,1736694638382,-500.0,9.965e-05,2]
[348637835,1736694638391,-500.0,9.965e-05,2]
[348637836,1736694638401,-500.0,9.965e-05,2]
[348637837,1736694638413,-501.74,9.965e-05,2]
[348637838,1736694638422,-749.55,9.965e-05,2]
[348637839,1736694638431,-500.0,9.965e-05,2]
[348637840,1736694638440,-500.0,9.965e-05,2]
[348637841,1736694638450,-500.0,9.965e-05,2]
[348637842,1736694638459,-500.0,9.965e-05,2]
[348637843,1736694638468,-645.82,9.965e-05,2]
[348637844,1736694638478,-500.0,9.965e-05,2]
[348637845,1736694638487,-500.0,9.965e-05,2]
[348637846,1736694638496,-500.0,9.965e-05,2]
[348637847,1736694638506,-683.3,9.965e-05,2]
[348637848,1736694638515,-552.42,9.965e-05,2]
[348637849,1736694638524,-500.0,9.965e-05,2]
[348637850,1736694638534,-512.00535454,9.965e-05,2]
[348637851,1736694638543,-500.0,9.965e-05,2]
[348637852,1736694638552,-507.23,9.965e-05,2]
[348637853,1736694638561,-500.0,9.965e-05,2]
[348637854,1736694638571,-500.0,9.965e-05,2]
[348637855,1736694638581,-1295.17,9.965e-05,2]
[348637856,1736694638590,-506.19805776,9.965e-05,2]
[348637857,1736694638600,-500.0,9.965e-05,2]
[348637858,1736694638609,-500.0,9.965e-05,2]
[348637859,1736694638618,-500.0,9.965e-05,2]
[348637860,1736694638627,-713.75,9.965e-05,2]
[348637861,1736694638636,-500.0,9.965e-05,2]
[348637862,1736694638645,-215.11475672,9.965e-05,2]
[348637863,1736694638654,-500.0,9.965e-05,2]
[348637864,1736694638663,-500.0,9.965e-05,2]
[348637865,1736694638672,-500.0,9.965e-05,2]
[348637866,1736694638682,-506.59931369,9.965e-05,2]
[348637867,1736694638691,-500.0,9.965e-05,2]
[348637868,1736694638700,-500.0,9.965e-05,2]
[348637869,1736694638709,-500.0,9.965e-05,2]
[348637870,1736694638718,-500.0,9.965e-05,2]
[348637871,1736694638728,-500.0,9.965e-05,2]
[348637872,1736694638737,-594.72,9.965e-05,2]
[348637873,1736694638747,-624.21942434,9.965e-05,2]
[348637874,1736694638756,-617.96,9.965e-05,2]
[348637875,1736694638765,-338.35049807,9.965e-05,2]
[348637876,1736694638774,-500.0,9.965e-05,2]
[348637877,1736694638784,-500.0,9.965e-05,2]
[348637878,1736694638793,-1400.47,9.965e-05,2]
[348637879,1736694638802,-500.0,9.965e-05,2]
[348637880,1736694638811,-657.52,9.965e-05,2]
[348637881,1736694638821,-517.76,9.965e-05,2]
[348637882,1736694638830,-500.0,9.965e-05,2]
[348637883,1736694638839,-500.0,9.965e-05,2]
[348637884,1736694638848,-647.71,9.965e-05,2]
[348637885,1736694638857,-500.0,9.965e-05,2]
[348637886,1736694638866,-502.20081016,9.965e-05,2]
[348637887,1736694638875,-500.0,9.965e-05,2]
[348637888,1736694638884,-500.0,9.965e-05,2]
[348637889,1736694638893,-501.37987764,9.965e-05,2]
[348637890,1736694638903,-500.0,9.965e-05,2]
[348637891,1736694638912,-535.15,9.965e-05,2]
[348637892,1736694638921,-500.0,9.965e-05,2]
[348637893,1736694638931,-500.0,9.965e-05,2]
[348637894,1736694638941,-564.96,9.965e-05,2]
[348637895,1736694638950,-500.0,9.965e-05,2]
[348637896,1736694638959,-500.0,9.965e-05,2]
[348637897,1736694638968,-500.0,9.965e-05,2]
[348637898,1736694638978,-500.0,9.965e-05,2]
[348637899,1736694638987,-501.42788874,9.965e-05,2]
[348637900,1736694638996,-500.0,9.965e-05,2]
[348637901,1736694639006,-634.26,9.965e-05,2]
[348637902,1736694639015,-500.0,9.965e-05,2]
[348637903,1736694639024,-500.0,9.965e-05,2]
[348637904,1736694639034,-500.0,9.965e-05,2]
[348637905,1736694639043,-500.0,9.965e-05,2]
[348637906,1736694639053,-500.0,9.965e-05,2]
[348637907,1736694639063,-500.0,9.965e-05,2]
[348637908,1736694639072,-557.1,9.965e-05,2]
[348637909,1736694639081,-507.92713779,9.965e-05,2]
[348637910,1736694639091,-500.0,9.965e-05,2]
[348637911,1736694639100,-500.0,9.965e-05,2]
[348637912,1736694639109,-500.0,9.965e-05,2]
[348637913,1736694639119,-500.0,9.965e-05,2]
[348637914,1736694639128,-896.62,9.965e-05,2]
[348637915,1736694639138,-500.0,9.965e-05,2]
[348637916,1736694639147,-500.0,9.965e-05,2]
[348637917,1736694639157,-500.0,9.965e-05,2]
[348637918,1736694639168,-500.0,9.965e-05,2]
[348637919,1736694639177,-585.33,9.965e-05,2]
[348637920,1736694639187,-502.30205745,9.965e-05,2]
[348637921,1736694639196,-500.0,9.965e-05,2]
[348637922,1736694639206,-500.0,9.965e-05,2]
[348637923,1736694639216,-500.0,9.965e-05,2]
[348637924,1736694639227,-500.0,9.965e-05,2]
[348637925,1736694639236,-2136.72,9.965e-05,2]
[348637926,1736694639246,-500.0,9.965e-05,2]
[348637927,1736694639255,-500.0,9.965e-05,2]
[348637928,1736694639264,-500.0,9.965e-05,2]
[348637929,1736694639274,-500.0,9.965e-05,2]
[348637930,1736694639283,-500.0,9.965e-05,2]
[348637931,1736694639293,-500.0,9.965e-05,2]
[348637932,1736694639302,-904.35,9.965e-05,2]
[348637933,1736694639313,-725.37,9.965e-05,2]
[348637934,1736694639323,-770.06,9.965e-05,2]
[348637935,1736694639332,-500.0,9.965e-05,2]
[348637936,1736694639341,-501.33627234,9.965e-05,2]
[348637937,1736694639352,-506.42272592,9.965e-05,2]
[348637938,1736694639361,-500.0,9.965e-05,2]
[348637939,1736694639370,-507.30507255,9.965e-05,2]
[348637940,1736694639380,-500.0,9.965e-05,2]
[348637941,1736694639390,-500.0,9.965e-05,2]
[348637942,1736694639399,-500.0,9.965e-05,2]
[348637943,1736694639409,-1984.44,9.965e-05,2]
[348637944,1736694639418,-500.0,9.965e-05,2]
[348637945,1736694639427,-500.0,9.965e-05,2]
[348637946,1736694639437,-500.0,9.965e-05,2]
[348637947,1736694639447,-173.73123733,9.965e-05,2]
[348637948,1736694639457,-500.0,9.965e-05,2]
[348637949,1736694639467,-500.0,9.965e-05,2]
[348637950,1736694639476,-6857.45,9.965e-05,2]
[348637951,1736694639486,-718.54,9.965e-05,2]
[348637952,1736694639496,-500.0,9.965e-05,2]
[348637953,1736694639506,-440.57066798,9.965e-05,2]
[348637954,1736694639516,-500.0,9.965e-05,2]
[348637955,1736694639526,-500.0,9.965e-05,2]
[348637956,1736694639535,-500.0,9.965e-05,2]
[348637957,1736694639547,-500.0,9.965e-05,2]
[348637958,1736694639556,-500.5197249,9.965e-05,2]
[348637959,1736694639566,-500.0,9.965e-05,2]
[348637960,1736694639576,-500.0,9.965e-05,2]
[348637961,1736694639585,-727.46,9.965e-05,2]
[348637962,1736694639595,-500.0,9.965e-05,2]
[348637963,1736694639605,-500.0,9.965e-05,2]
[348637964,1736694639614,-501.11596315,9.965e-05,2]
[348637965,1736694639623,-1653.44,9.965e-05,2]
[348637966,1736694639633,-500.0,9.965e-05,2]
[348637967,1736694639642,-500.0,9.965e-05,2]
[348637968,1736694639651,-500.0,9.965e-05,2]
[348637969,1736694639660,-500.0,9.965e-05,2]
[348637970,1736694639669,-500.0,9.965e-05,2]
[348637971,1736694639678,-500.0,9.965e-05,2]
[348637972,1736694639875,-710.42,9.965e-05,2]
[348637973,1736694639885,-500.0,9.965e-05,2]
[348637974,1736694639894,-500.0,9.965e-05,2]
[348637975,1736694639904,-500.0,9.965e-05,2]
[348637976,1736694639913,-500.0,9.965e-05,2]
[348637977,1736694639922,-500.0,9.965e-05,2]
[348637978,1736694639932,-500.0,9.965e-05,2]
[348637979,1736694639942,-500.0,9.965e-05,2]
[348637980,1736694639951,-500.0,9.965e-05,2]
[348637981,1736694639961,-500.0,9.965e-05,2]
[348637982,1736694639970,-972.62,9.965e-05,2]
[348637983,1736694639983,-3414.42,9.965e-05,2]
[348637984,1736694639993,-736.83,9.965e-05,2]
[348637985,1736694640003,-500.0,9.965e-05,2]
[348637986,1736694640012,-500.0,9.965e-05,2]
[348637987,1736694640022,-500.0,9.965e-05,2]
[348637988,1736694640031,-500.0,9.965e-05,2]
[348637989,1736694640041,-1910.56,9.965e-05,2]
[348637990,1736694640050,-2077.01,9.965e-05,2]
[348637991,1736694640060,-576.74,9.965e-05,2]
[348637992,1736694640069,-500.0,9.965e-05,2]
[348637993,1736694640079,-500.0,9.965e-05,2]
[348637994,1736694640088,-500.0,9.965e-05,2]
[348637995,1736694640098,-528.49,9.965e-05,2]
[348637996,1736694640107,-500.0,9.965e-05,2]
[348637998,1736694640116,-506.27399574,9.965e-05,2]
[348638000,1736694640126,-500.0,9.965e-05,2]
[348638002,1736694640138,-500.0,9.965e-05,2]
[348638004,1736694640147,-500.0,9.965e-05,2]
[348638006,1736694640157,-500.0,9.965e-05,2]
[348638008,1736694640166,-500.0,9.965e-05,2]
[348638009,1736694640176,-500.0,9.965e-05,2]
[348638010,1736694640187,-500.0,9.965e-05,2]
[348638011,1736694640197,-500.0,9.965e-05,2]
[348638012,1736694640207,-1835.13,9.965e-05,2]
[348638013,1736694640216,-500.0,9.965e-05,2]
[348638014,1736694640226,-500.0,9.965e-05,2]
[348638015,1736694640235,-2452.38,9.965e-05,2]
[348638016,1736694640244,-563.56,9.965e-05,2]
[348638017,1736694640254,-500.0,9.965e-05,2]
[348638018,1736694640263,-500.0,9.965e-05,2]
[348638019,1736694640272,-500.0,9.965e-05,2]
[348638020,1736694640282,-500.0,9.965e-05,2]
[348638021,1736694640292,-507.39144171,9.965e-05,2]
[348638022,1736694640302,-1504.76,9.965e-05,2]
[348638023,1736694640311,-546.93,9.965e-05,2]
[348638024,1736694640322,-500.0,9.965e-05,2]
[348638025,1736694640331,-1128.73,9.965e-05,2]
[348638026,1736694640340,-500.0,9.965e-05,2]
[348638027,1736694640349,-825.56,9.965e-05,2]
[348638028,1736694640359,-500.0,9.965e-05,2]
[348638029,1736694640368,-500.0,9.965e-05,2]
[348638030,1736694640377,-587.24024326,9.965e-05,2]
[348638031,1736694640386,-500.0,9.965e-05,2]
[348638032,1736694640395,-500.0,9.965e-05,2]
[348638033,1736694640406,-500.0,9.965e-05,2]
[348638034,1736694640416,-500.0,9.965e-05,2]
[348638035,1736694640425,-500.0,9.965e-05,2]
[348638036,1736694640434,-500.0,9.965e-05,2]
[348638037,1736694640443,-500.0,9.965e-05,2]
[348638038,1736694640454,-500.0,9.965e-05,2]
[348638039,1736694640463,-643.88,9.965e-05,2]
[348638040,1736694640472,-504.29442747,9.965e-05,2]
[348638041,1736694640484,-500.0,9.965e-05,2]
[348638042,1736694640494,-715.53,9.965e-05,2]
[348638043,1736694640503,-793.16,9.965e-05,2]
[348638044,1736694640513,-530.4,9.965e-05,2]
[348638045,1736694640522,-686.55,9.965e-05,2]
[348638046,1736694640531,-758.03,9.965e-05,2]
[348638047,1736694640540,-500.0,9.965e-05,2]
[348638048,1736694640550,-605.078297,9.965e-05,2]
[348638049,1736694640560,-500.0,9.965e-05,2]
[348638050,1736694640570,-1177.2,9.965e-05,2]
[348638051,1736694640579,-504.78802334,9.965e-05,2]
[348638052,1736694640588,-500.0,9.965e-05,2]
[348638053,1736694640598,-159.355485,9.965e-05,2]
[348638054,1736694640607,-500.0,9.965e-05,2]
[348638055,1736694640616,-500.0,9.965e-05,2]
[348638056,1736694640626,-500.0,9.965e-05,2]
[348638057,1736694640636,-500.0,9.965e-05,2]
[348638058,1736694640647,-1723.78,9.965e-05,2]
[348638059,1736694640656,-158.29736,9.965e-05,2]
[348638060,1736694640667,-500.0,9.965e-05,2]
[348638061,1736694640676,-500.0,9.965e-05,2]
[348638062,1736694640687,-687.18,9.965e-05,2]
[348638063,1736694640696,-500.0,9.965e-05,2]
[348638064,1736694640706,-500.0,9.965e-05,2]
[348638065,1736694640715,-500.0,9.965e-05,2]
[348638066,1736694640725,-500.0,9.965e-05,2]
[348638067,1736694640734,-718.39,9.965e-05,2]
[348638068,1736694640744,-500.0,9.965e-05,2]
[348638069,1736694640753,-578.2,9.965e-05,2]
[348638070,1736694640763,-500.0,9.965e-05,2]
[348638071,1736694640772,-500.0,9.965e-05,2]
[348638072,1736694640782,-502.93144659,9.965e-05,2]
[348638073,1736694640791,-503.33293654,9.965e-05,2]
[348638074,1736694640800,-543.453566,9.965e-05,2]
[348638075,1736694640809,-500.0,9.965e-05,2]
[348638076,1736694640818,-1427.57,9.965e-05,2]
[348638077,1736694640828,-500.0,9.965e-05,2]
[348638078,1736694640838,-500.0,9.965e-05,2]
[348638079,1736694640847,-500.0,9.965e-05,2]
[348638080,1736694640856,-500.0,9.965e-05,2]
[348638081,1736694640865,-500.0,9.965e-05,2]
[348638082,1736694640874,-500.0,9.965e-05,2]
[348638083,1736694640883,-500.0,9.965e-05,2]
[348638084,1736694640893,-500.0,9.965e-05,2]
[348638085,1736694640902,-500.0,9.965e-05,2]
[348638086,1736694640911,-500.0,9.965e-05,2]
[348638087,1736694640920,-668.25,9.965e-05,2]
[348638088,1736694640930,-500.0,9.965e-05,2]
[348638089,1736694640939,-2969.04,9.965e-05,2]
[348638090,1736694640949,-501.73126271,9.965e-05,2]
[348638091,1736694640958,-503.32887218,9.965e-05,2]
[348638092,1736694640967,-500.0,9.965e-05,2]
[348638093,1736694640977,-500.0,9.965e-05,2]
[348638094,1736694640987,-500.0,9.965e-05,2]
[348638095,1736694640996,-500.0,9.965e-05,2]
[348638096,1736694641006,-500.0,9.965e-05,2]
[348638097,1736694641015,-500.62304385,9.965e-05,2]
[348638098,1736694641025,-500.0,9.965e-05,2]
[348638099,1736694641035,-500.0,9.965e-05,2]
[348638100,1736694641044,-500.0,9.965e-05,2]
[348638101,1736694641053,-500.0,9.965e-05,2]
[348638102,1736694641063,-500.0,9.965e-05,2]
[348638103,1736694641072,-500.0,9.965e-05,2]
[348638104,1736694641082,-500.0,9.965e-05,2]
[348638105,1736694641091,-523.39215435,9.965e-05,2]
[348638106,1736694641100,-605.88162009,9.965e-05,2]
[348638107,1736694641109,-1427.69,9.965e-05,2]
[348638108,1736694641118,-500.0,9.965e-05,2]
[348638109,1736694641127,-588.58690907,9.966e-05,2]
[348638110,1736694641139,-504.42546372,9.966e-05,2]
[348638111,1736694641148,-506.28537832,9.966e-05,2]
[348638112,1736694641157,-613.33,9.966e-05,2]
[348638113,1736694641166,-500.0,9.966e-05,2]
[348638114,1736694641175,-500.0,9.966e-05,2]
[348638115,1736694641184,-500.0,9.966e-05,2]
[348638116,1736694641194,-501.48334771,9.966e-05,2]
[348638117,1736694641203,-500.0,9.966e-05,2]
[348638118,1736694641212,-500.0,9.966e-05,2]
[348638119,1736694641221,-500.0,9.966e-05,2]
[348638120,1736694641233,-500.0,9.966e-05,2]
[348638121,1736694641242,-500.0,9.966e-05,2]
[348638122,1736694641251,-500.0,9.966e-05,2]
[348638123,1736694641260,-500.0,9.966e-05,2]
[348638124,1736694641269,-500.0,9.966e-05,2]
[348638125,1736694641279,-500.0,9.966e-05,2]
[348638126,1736694641288,-500.0,9.966e-05,2]
[348638127,1736694641297,-500.0,9.966e-05,2]
[348638128,1736694641306,-500.0,9.966e-05,2]
[348638129,1736694641315,-315.4553963,9.966e-05,2]
[348638130,1736694641323,-500.0,9.966e-05,2]
[348638131,1736694641333,-500.0,9.966e-05,2]
[348638132,1736694641342,-545.41081774,9.966e-05,2]
[348638133,1736694641351,-500.0,9.966e-05,2]
[348638134,1736694641360,-500.0,9.966e-05,2]
[348638135,1736694641369,-503.74050456,9.966e-05,2]
[348638136,1736694641378,-500.0,9.966e-05,2]
[348638137,1736694641387,-501.41511313,9.966e-05,2]
[348638138,1736694641395,-500.0,9.966e-05,2]
[348638139,1736694641406,-500.0,9.966e-05,2]
[348638140,1736694641415,-500.0,9.966e-05,2]
[348638141,1736694641426,-500.0,9.966e-05,2]
[348638142,1736694641440,-500.67578421,9.966e-05,2]
[348638143,1736694641455,-500.0,9.966e-05,2]
[348638144,1736694641467,-506.91,9.966e-05,2]
[348638145,1736694641480,-500.0,9.966e-05,2]
[348638146,1736694641494,-500.0,9.966e-05,2]
[348638147,1736694641508,-500.0,9.966e-05,2]
[348638148,1736694641521,-500.0,9.966e-05,2]
[348638149,1736694641534,-500.0,9.966e-05,2]
[348638150,1736694641547,-500.0,9.966e-05,2]
[348638151,1736694641559,-500.0,9.966e-05,2]